fUSD/lending_fUSD_20241026
["ID","MTS","AMOUNT","RATE_DAILY","PERIOD"]
[340850333,1729929043052,-151.0,0.00043015,14]
[340850334,1729929043062,-151.0,0.00043015,14]
[340850335,1729929043073,-363.97784832,0.00043085,2]
[340850336,1729929043083,-151.0,0.00043095,14]
[340850337,1729929043094,-151.0,0.00043095,14]
[340850338,1729929043105,-154.985107,0.00043095,14]
[340850339,1729929043118,-154.443451,0.00043095,14]
[340850340,1729929043127,-151.0,0.00043095,14]
[340850341,1729929043136,-151.0,0.00043095,14]
[340850342,1729929043146,-151.0,0.00043095,14]
[340850343,1729929043156,-305.700112,0.00043095,14]
[340850344,1729929043167,-305.700112,0.00043095,14]
[340850345,1729929043177,-266.716135,0.00043095,14]
[340850346,1729929043188,-266.716135,0.00043095,14]
[340850347,1729929043198,-233.773583,0.00043095,14]
[340850348,1729929043207,-233.773583,0.00043095,14]
[340850349,1729929043216,-151.0,0.00043095,14]
[340850350,1729929043226,-151.0,0.00043095,14]
[340850351,1729929043235,-280.387494,0.00043105,14]
[340850352,1729929043244,-151.0,0.00043105,14]
[340850353,1729929043253,-158.167271,0.00043105,14]
[340850354,1729929043263,-280.387494,0.00043105,14]
[340850355,1729929043272,-151.0,0.00043105,14]
[340850356,1729929043282,-151.0,0.00043105,14]
[340850357,1729929043291,-154.195583,0.00043105,14]
[340850358,1729929043300,-151.0,0.00043105,14]
[340850359,1729929043419,-154.195583,0.00043105,14]
[340850360,1729929043430,-151.0,0.00043105,14]
[340850361,1729929043439,-151.0,0.00043105,14]
[340850362,1729929043448,-151.0,0.00043105,14]
[340850363,1729929043458,-151.0,0.00043105,14]
[340850364,1729929043467,-151.0,0.00043105,14]
[340850365,1729929043477,-151.0,0.00043105,14]
[340850366,1729929043486,-151.0,0.00043105,14]
[340850367,1729929043495,-391.073799,0.00043105,14]
[340850368,1729929043505,-151.0,0.00043105,14]
[340850369,1729929043514,-391.073799,0.00043105,14]
[340850370,1729929043524,-151.0,0.00043105,14]
[340850371,1729929043534,-151.0,0.00043105,14]
[340850372,1729929043543,-152.038753,0.00043105,14]
[340850373,1729929043552,-151.0,0.00043105,14]
[340850374,1729929043562,-218.666555,0.00043105,14]
[340850375,1729929043572,-218.666555,0.00043105,14]
[340850376,1729929043582,-151.0,0.00043105,14]
[340850377,1729929043591,-151.0,0.00043105,14]
[340850378,1729929043601,-151.0,0.00043105,14]
[340850379,1729929043610,-151.0,0.00043105,14]
[340850380,1729929043621,-305.700112,0.00043105,14]
[340850381,1729929043630,-305.700112,0.00043105,14]
[340850382,1729929043639,-266.716135,0.00043105,14]
[340850383,1729929043649,-266.716135,0.00043105,14]
[340850384,1729929043659,-233.773583,0.00043105,14]
[340850385,1729929043669,-233.773583,0.00043105,14]
[340850386,1729929043678,-151.0,0.00043105,14]
[340850387,1729929043688,-151.0,0.00043105,14]
[340850388,1729929043698,-598.87328436,0.00043113,10]
[340850389,1729929043708,-172841.68842373,0.00043115,2]
[340850390,1729929043719,-259.6362532,0.00043115,2]
[340850391,1729929043731,-589.31000017,0.00043115,2]
[340850392,1729929043747,-2611.10939048,0.00043115,2]
[340850393,1729929043759,-2903.97220526,0.00043115,2]
[340850397,1729929045793,-1008.96,0.00040373,2]
[340850398,1729929045803,-1008.96,0.00042637,2]
[340850399,1729929045812,-61984.10207683,0.00043115,2]
[340850400,1729929045910,-431.885,0.00043115,2]
[340850401,1729929045972,-3378.29665033,0.00043115,2]
[340850402,1729929045982,-500.0,0.00043115,2]
[340850403,1729929045993,-1129.8792496,0.00043115,2]
[340850404,1729929046005,-250.10479714,0.00043115,2]
[340850405,1729929046016,-12634.45042317,0.00043115,2]
[340850406,1729929343386,250.0,0.00015,2]
[340850407,1729929344501,300.0,0.00017,2]
[340850408,1729929914526,6516.0,0.00021,120]
[340850409,1729930189631,164.83,0.00015342,2]
[340850418,1729930231959,-350.0,0.00019,2]
[340850419,1729930231969,-400.0,0.00021,2]
[340850420,1729930231978,-450.0,0.00023,2]
[340850421,1729930231987,-500.0,0.00025,2]
[340850422,1729930231996,-550.0,0.00027,2]
[340850423,1729930232005,-600.0,0.00029,2]
[340850424,1729930232015,-9987.01481835,0.0003,7]
[340850425,1729930232024,-650.0,0.00031,2]
[340850426,1729930232034,-700.0,0.00033,2]
[340850427,1729930232044,-750.0,0.00035,2]
[340850428,1729930232055,-800.0,0.00037,2]
[340850429,1729930232066,-943.66,0.00037181,2]
[340850430,1729930232076,-850.0,0.00039,2]
[340850431,1729930232086,-295.26,0.00039,2]
[340850432,1729930232095,-250.0,0.00039086,120]
[340850433,1729930232104,-250.0,0.00039112,2]
[340850434,1729930232113,-1193.56,0.00039132,2]
[340850435,1729930232122,-150.0,0.00039134,2]
[340850436,1729930232131,-168.08,0.00039338,120]
[340850437,1729930232140,-225.07,0.00039355,2]
[340850438,1729930232149,-256.83,0.00039401,2]
[340850439,1729930232158,-6495.32518165,0.00039431,2]
[340850440,1729930232275,-463.48174679,0.00039431,2]
[340850457,1729930238087,-521.5996,0.00039431,2]
[340850458,1729930238141,-5785.81483629,0.00039431,2]
[340850459,1729930238154,-10333.7651322,0.00039431,2]
[340850460,1729930238169,-300.01350307,0.00039431,2]
[340850461,1729930238179,-751.26170162,0.00039444,2]
[340850462,1729930238191,-192.39829838,0.00039444,2]
[340850463,1729930238201,-61.37490242,0.0003955,2]
[340850489,1729930240023,-348.22509758,0.0003955,2]
[340850490,1729930240032,-200.0,0.00039569,2]
[340850491,1729930240041,-28.68253876,0.0003959,2]
[340850492,1729930240052,-132.00746124,0.0003959,2]
[340850493,1729930240061,-280.34,0.00039593,2]
[340850494,1729930240070,-565.23,0.00039599,2]
[340850495,1729930240079,-250.0,0.00039736,2]
[340850496,1729930240090,-302.08,0.00039842,2]
[340850497,1729930240099,-8305.12,0.00040043,2]
[340850498,1729930240108,-162.38,0.00040162,2]
[340850499,1729930240118,-163.06,0.00040286,2]
[340850500,1729930240127,-163.06,0.00040353,2]
[340850501,1729930240137,-163.06,0.0004042,2]
[340850502,1729930240145,-163.06,0.00040487,2]
[340850503,1729930240155,-900.0,0.00041,2]
[340850504,1729930240164,-151.62,0.00041096,2]
[340850505,1729930240174,-157.0,0.00041096,2]
[340850506,1729930240183,-255.0,0.000411,2]
[340850507,1729930240194,-291.0,0.000412,3]
[340850508,1729930240203,-943.66,0.00041708,2]
[340850509,1729930240213,-5000.0,0.000418,2]
[340850510,1729930240223,-302.08,0.00041834,2]
[340850511,1729930240234,-454.73977873,0.0004199,120]
[340850512,1729930240246,-1095.904,0.00042017,63]
[340850513,1729930240255,-170.664,0.00042017,63]
[340850514,1729930240264,-590.4,0.00042017,2]
[340850515,1729930240273,-770.78,0.00042247,7]
[340850516,1729930240282,-11528.0,0.000423,5]
[340850517,1729930240293,-42725.72754349,0.0004269,2]
[340850518,1729930240303,-357.0158,0.00042715,2]
[340850519,1729930240313,-5647.3654,0.00042815,2]
[340850520,1729930240322,-17982.6396,0.00042815,2]
[340850521,1729930240333,-1071.7215,0.00042815,2]
[340850522,1729930240342,-1000.0,0.00042815,2]
[340850523,1729930240352,-2500.0,0.00042815,2]
[340850524,1729930240361,-7012.3852,0.00042815,2]
[340850525,1729930240371,-3199.4286,0.00042815,2]
[340850526,1729930240380,-6766.5686,0.00042815,2]
[340850527,1729930240487,-4347.33598723,0.00042815,15]
[340850528,1729930240497,-216.3435266,0.00042815,28]
[340850529,1729930240505,-215.00105269,0.00042815,15]
[340850530,1729930240514,-183.0,0.00042905,2]
[340850531,1729930240523,-111584.011453,0.00042905,10]
[340850532,1729930240533,-340.12273711,0.00042914,31]
[340850533,1729930240542,-412.02284723,0.00042914,2]
[340850534,1729930240551,-194104.71808776,0.00042915,2]
[340850535,1729930240680,-4914.07889441,0.00042915,2]
[340850536,1729930240695,-365.177,0.00042915,2]
[340850546,1729930243217,-323.84209865,0.00042815,2]
[340850547,1729930243226,-118.9269872,0.00042915,2]
[340850605,1729931108718,1957.84,0.00014,2]
[340850606,1729931108752,139267.54001235,0.00014,2]
[340850607,1729931277952,8176.4723082,0.00043308,120]
[340850610,1729931397905,-6031.38872099,0.000149,2]
[340850611,1729931397926,-250.0,0.00015,2]
[340850612,1729931397946,-31140.40163833,0.00015,2]
[340850613,1729931397966,-300.0,0.00017,2]
[340850614,1729931397986,-350.0,0.00019,2]
[340850615,1729931398009,-467.55274364,0.0002,10]
[340850616,1729931398029,-7976.87169358,0.0002,2]
[340850617,1729931398050,-1391.94103549,0.0002,2]
[340850624,1729931432102,-749.42971923,0.00022,7]
[340850625,1729931432111,-279.15525,0.0003,2]
[340850626,1729931432121,-279.15525,0.00034869,2]
[340850627,1729931432131,-2868.14506883,0.00039206,2]
[340850628,1729931432159,-387.02289021,0.00039206,2]
[340850629,1729931432272,-6744.82204096,0.00039206,2]
[340850630,1729931432282,-862.95,0.00039206,2]
[340850631,1729931432291,-672.32,0.00039903,2]
[340850632,1729931432301,-51529.34950195,0.0004,2]
[340850633,1729931432311,-250.0,0.00040348,2]
[340850634,1729931432320,-23900.0,0.00040439,2]
[340850635,1729931432330,-150.0,0.0004045,2]
[340850636,1729931432340,-250.0,0.000409,120]
[340850637,1729931432349,-196.5,0.00041057,2]
[340850638,1729931432359,-596.78,0.00041068,2]
[340850639,1729931432368,-200.0,0.0004109,2]
[340850640,1729931432377,-151.62,0.00041096,2]
[340850641,1729931432386,-162.38,0.00041418,2]
[340850643,1729931432396,-168.08,0.00041426,120]
[340850644,1729931432405,-862.95,0.0004147,2]
[340850646,1729931432414,-327.68,0.0004147,2]
[340850648,1729931432423,-150.0,0.00042,120]
[340850650,1729931432433,-40110.0855401,0.00042,120]
[340850652,1729931432443,-216.89,0.00042011,2]
[340850654,1729931432452,-1067.096,0.00042129,63]
[340850657,1729931432461,-170.105,0.00042129,63]
[340850660,1729931432471,-238.00755861,0.00042634,2]
[340850664,1729931432480,-1000.0,0.00042715,2]
[340850665,1729931432489,-7076.6991,0.00042715,2]
[340850666,1729931432499,-1739.2044,0.00042715,2]
[340850667,1729931432508,-2229.88085837,0.00042715,2]
[340850668,1729931432520,-270.11914163,0.00042715,2]
[340850669,1729931432530,-3069.48086132,0.00042715,2]
[340850670,1729931432554,-307.8334,0.00042715,2]
[340850671,1729931432565,-4854.20023868,0.00042715,2]
[340850672,1729931432575,-4350.61555887,0.00042715,15]
[340850673,1729931432585,-189.30058574,0.00042715,28]
[340850674,1729931432595,-322.16107419,0.00042715,2]
[340850675,1729931432604,-215.00105268,0.00042715,15]
[340850676,1729931432614,-166.99,0.00042748,2]
[340850677,1729931432623,-369.92,0.00042795,30]
[340850678,1729931432633,-23104.05438006,0.00042805,9]
[340850680,1729931438377,-11881.32447421,0.00042805,9]
[340850681,1729931438541,-214.28421043,0.00042805,9]
[340850682,1729931438551,-3883.7576,0.00042815,2]
[340850683,1729931438562,-37716.1946,0.00042815,2]
[340850684,1729931438572,-361.6792,0.00042815,2]
[340850685,1729931438581,-100000.0,0.00042815,2]
[340850686,1729931438590,-245000.0,0.00042815,2]
[340850687,1729931438599,-1000.0,0.00042815,2]
[340850688,1729931438608,-1407.98652259,0.00042884,9]
[340850689,1729931438617,-18260.22483932,0.00042894,2]
[340850690,1729931438627,-868.1339,0.00042895,2]
[340850691,1729931438635,-34660.3312,0.00042895,2]
[340850692,1729931438645,-500.0,0.00042895,2]
[340850693,1729931438654,-8316.89134079,0.00042915,2]
[340850694,1729931438663,-217.0,0.00042915,2]
[340850695,1729931438672,-168.65301935,0.00042915,9]
[340850696,1729931438682,-10847.54903846,0.00042995,9]
[340850702,1729931443303,-3910.991247,0.00042995,9]
[340850703,1729931443315,-1404.50793858,0.00042995,9]
[340850704,1729931443327,-3073.1524667,0.00042995,9]
[340850705,1729931446218,-241.02035736,0.00042995,9]
[340850706,1729931446228,-228.73364264,0.00043004,31]
[340850707,1729931740726,171.32,0.00015342,2]
[340850717,1729932632313,-7047.80590527,0.0003,7]
[340850718,1729932632424,-1697.25341865,0.0003,7]
[340850725,1729932638574,-1803.40447818,0.0003,7]
[340850758,1729932646401,-332.67242312,0.0003,7]
[340850759,1729932646509,-9082.85577479,0.0003,7]
[340850760,1729932646519,-151.62,0.0004128,2]
[340850761,1729932646529,-162.38,0.00041362,2]
[340850762,1729932646539,-23900.0,0.00041363,2]
[340850763,1729932646548,-298.39,0.00041413,2]
[340850764,1729932646557,-1623.2,0.00041418,2]
[340850765,1729932646567,-250.0,0.00041475,120]
[340850766,1729932646576,-537.86,0.00041477,2]
[340850767,1729932646586,-150.0,0.00041556,2]
[340850768,1729932646595,-4027.5012,0.00041609,2]
[340850769,1729932646604,-168.08,0.00041622,120]
[340850770,1729932646614,-462.14,0.00041753,2]
[340850771,1729932646624,-173.51,0.00041944,2]
[340850772,1729932646634,-1000.0,0.00042505,2]
[340850773,1729932646648,-2500.0,0.00042505,2]
[340850774,1729932646659,-3915.55400301,0.00042505,15]
[340850775,1729932646670,-165.63801254,0.00042505,28]
[340850776,1729932646679,-215.00105268,0.00042505,14]
[340850777,1729932646688,-322.16107412,0.00042505,2]
[340850778,1729932646697,-170.10696826,0.00042515,64]
[340850779,1729932646706,-853.677,0.00042515,64]
[340850780,1729932646715,-6439.54447122,0.00042595,9]
[340850781,1729932646724,-10601.34614044,0.00042605,2]
[340850782,1729933308544,164.83,0.00015342,2]
[340850783,1729933573121,150.0,0.00017433,2]
[340850786,1729933615072,151.63404891,0.00017433,2]
[340850787,1729933741746,300.0,0.00019725,2]
[340850789,1729933831638,-173.40798076,0.00023301,2]
[340850790,1729933831648,-167.42,0.00032588,2]
[340850791,1729933831657,-124.96007995,0.00038778,2]
[340850811,1729933837621,-685.12992005,0.00038778,2]
[340850812,1729933837630,-200.0,0.00040598,2]
[340850813,1729933837639,-345.08,0.0004064,2]
[340850814,1729933837649,-173.51,0.00040661,2]
[340850815,1729933837658,-807.88,0.00040683,2]
[340850816,1729933837668,-1030.24007995,0.00040683,2]
[340850821,1729933839467,-481.32394997,0.00040683,2]
[340850822,1729933839478,-671.47,0.00040683,2]
[340850831,1729933842438,-490.66010777,0.00040683,2]
[340850838,1729933845676,-17747.49810241,0.00040683,2]
[340850839,1729933850839,156.65,0.00015342,2]
[340850840,1729933981999,300.0,0.00019725,2]
[340850841,1729934101523,300.0,0.00019725,2]
[340850842,1729934161363,300.0,0.00019725,2]
[340850850,1729934708346,107060.23675143,0.00014,2]
[340850851,1729934766939,250.0,0.00015,2]
[340850852,1729934768131,300.0,0.00017,2]
[340850853,1729934769225,350.0,0.00019,2]
[340850854,1729934822712,300.0,0.00019725,2]
[340850855,1729934882158,108709.73759868,0.00015,2]
[340850861,1729935005184,171.32,0.00015342,2]
[340850874,1729935031640,-3834.18185265,0.00021,2]
[340850875,1729935031652,-663.95658174,0.00021,2]
[340850876,1729935031663,-1387.78715301,0.00021,2]
[340850877,1729935031812,-655.60712406,0.00021,2]
[340850878,1729935031824,-335.425,0.00021,2]
[340850879,1729935031873,-340.28165674,0.00021,2]
[340850880,1729935031885,-5945.57433358,0.00021,2]
[340850881,1729935031896,-1661.25558029,0.00021,2]
[340850891,1729935037857,-39.73766086,0.00021,2]
[340850892,1729935037870,-274.26233814,0.00025,2]
[340850893,1729935037963,-2617.06457901,0.00025,2]
[340850894,1729935037973,-3212.89563049,0.000251,2]
[340850895,1729935037982,-279.1555,0.0003,2]
[340850896,1729935037992,-151.0,0.0003,120]
[340850897,1729935038002,-150.99,0.0003,2]
[340850898,1729935038012,-159.47622655,0.00031,2]
[340850899,1729935038022,-499.999998,0.0003121,2]
[340850900,1729935038031,-156.65,0.0003272,2]
[340850901,1729935038041,-279.1555,0.00034273,2]
[340850902,1729935038051,-795.69,0.00038939,2]
[340850903,1729935038060,-250.0,0.00040623,120]
[340850904,1729935038071,-682.942,0.00040653,58]
[340850905,1729935038080,-173.51,0.00040672,2]
[340850906,1729935038090,-1000.0,0.00040672,2]
[340850907,1729935038099,-1072.31785573,0.00040683,7]
[340850908,1729935038114,-695.11385079,0.00040683,7]
[340850909,1729935038124,-200.0,0.00040683,7]
[340850910,1729935038133,-13002.10136828,0.00040857,2]
[340850911,1729935038187,-569.5689955,0.00040857,2]
[340850912,1729935039681,-743.50476783,0.00040857,2]
[340850913,1729935039693,-338.43500008,0.00040857,2]
[340850923,1729935042688,-9246.38986831,0.00040857,2]
[340850925,1729935042697,-298.39,0.00040857,2]
[340850927,1729935042707,-454.0,0.00041,2]
[340850928,1729935042716,-200.0,0.0004109,7]
[340850929,1729935042725,-151.62,0.00041096,2]
[340850930,1729935042735,-795.69,0.00041203,2]
[340850931,1729935042744,-200.0,0.00041501,7]
[340850932,1729935042753,-152.17,0.0004167,2]
[340850933,1729935042762,-152.17,0.00041684,2]
[340850934,1729935042771,-152.17,0.00041698,2]
[340850935,1729935042781,-152.17,0.00041712,2]
[340850936,1729935042790,-152.17,0.00041726,2]
[340850937,1729935042799,-152.17,0.00041739,2]
[340850938,1729935042808,-152.17,0.00041753,2]
[340850939,1729935042818,-152.17,0.00041767,2]
[340850940,1729935042827,-152.17,0.00041781,2]
[340850941,1729935042836,-159.711936,0.00041785,10]
[340850942,1729935042846,-500.0,0.00041785,2]
[340850943,1729935042855,-159.711936,0.00041785,10]
[340850944,1729935042864,-159.711936,0.00041785,10]
[340850945,1729935042874,-159.711936,0.00041785,10]
[340850946,1729935042883,-159.87322874,0.00041785,10]
[340850947,1729935042892,-152.17,0.00041795,2]
[340850948,1729935042902,-152.17,0.00041809,2]
[340850949,1729935042911,-152.17,0.00041823,2]
[340850950,1729935042921,-152.17,0.00041837,2]
[340850951,1729935042931,-152.17,0.00041851,2]
[340850952,1729935042940,-152.17,0.00041864,2]
[340850953,1729935042950,-152.17,0.00041878,2]
[340850954,1729935042960,-542.0,0.00042,7]
[340850955,1729935042970,-167.0,0.00042053,2]
[340850956,1729935042979,-11521.0,0.000422,5]
[340850957,1729935042989,-2500.0,0.00042205,2]
[340850958,1729935042999,-3567.62294941,0.00042205,15]
[340850959,1729935043008,-165.6380125,0.00042205,28]
[340850960,1729935043018,-1000.0,0.00042295,2]
[340850961,1729935043027,-1202.0218,0.00042305,2]
[340850962,1729935043037,-37716.1946,0.00042305,2]
[340850963,1729935043046,-1000.0,0.00042305,2]
[340850964,1729935043055,-45783.19819614,0.00042305,2]
[340850970,1729935045811,-1008.434628,0.00041096,2]
[340850971,1729935108655,181.54,0.00019178,2]
[340850972,1729935297776,235.82018777,0.0001726,2]
[340850973,1729935521330,164.08,0.00015342,2]
[340851022,1729936245938,-177.07,0.0003183,2]
[340851023,1729936245949,-248.83559066,0.00032777,2]
[340851024,1729936245959,-169.36185341,0.00032877,2]
[340851025,1729936245969,-74.11255593,0.00033713,2]
[340851026,1729936245997,-174.72303471,0.00033713,2]
[340851027,1729936246007,-248.83559064,0.00034649,2]
[340851028,1729936246016,-12293.27797378,0.00034649,2]
[340851029,1729936246057,-1113.70970627,0.00034649,2]
[340851030,1729936246068,-535.00001144,0.00034649,2]
[340851032,1729936571755,250.0,0.00015,2]
[340851033,1729936572840,300.0,0.00017,2]
[340851034,1729936573913,350.0,0.00019,2]
[340851035,1729936634776,156.65,0.00015342,2]
[340851059,1729937432128,-400.0,0.00021,2]
[340851060,1729937432138,-84.83312869,0.00032877,2]
[340851122,1729937440006,-78.97638273,0.00032877,2]
[340851123,1729937440015,-175.40861718,0.00034849,120]
[340851132,1729937718556,171.32,0.00015342,2]
[340851136,1729938308702,139207.01454071,0.00014,2]
[340851138,1729938377608,250.0,0.00015,2]
[340851139,1729938378685,300.0,0.00017,2]
[340851140,1729938379784,350.0,0.00019,2]
[340851175,1729938640305,-2076.70892495,0.00023922,2]
[340851176,1729938640315,-252.8748098,0.0003245,2]
[340851177,1729938640324,-42725.72754349,0.0003255,2]
[340851178,1729938640334,-412.02284723,0.00032656,2]
[340851179,1729938640343,-4076.0801969,0.0003409,3]
[340851180,1729938640353,-250.0,0.00034492,2]
[340851181,1729938640363,-967.34,0.00034623,2]
[340851182,1729938640372,-150.99,0.00034623,2]
[340851183,1729938640381,-5514.23,0.00034623,2]
[340851184,1729938640390,-8305.12,0.00034664,2]
[340851185,1729938640399,-4286.68453058,0.000349,15]
[340851186,1729938640409,-859.9,0.000349,2]
[340851187,1729938640418,-159.71,0.00034973,5]
[340851188,1729938640427,-159.711936,0.00034973,5]
[340851189,1729938640437,-209.621916,0.00034973,5]
[340851190,1729938640446,-159.711936,0.00034973,5]
[340851191,1729938640455,-159.711936,0.00034973,5]
[340851192,1729938640464,-159.711936,0.00034973,5]
[340851193,1729938640474,-183.0,0.00035,2]
[340851194,1729938640484,-20324.27574152,0.00035,4]
[340851195,1729938640493,-5000.0,0.00035,14]
[340851196,1729938640503,-5000.0,0.00035,14]
[340851197,1729938640512,-5000.0,0.00035,14]
[340851198,1729938640522,-5000.0,0.00035,14]
[340851199,1729938640531,-5000.0,0.00035,14]
[340851200,1729938640540,-5000.0,0.00035,14]
[340851201,1729938640550,-5000.0,0.00035,14]
[340851202,1729938640559,-5000.0,0.00035,14]
[340851205,1729938640681,-5000.0,0.00035,14]
[340851207,1729938640690,-2686.23509,0.00035,14]
[340851209,1729938640701,-151.0,0.00035,7]
[340851211,1729938640710,-151.0,0.00035,7]
[340851213,1729938640719,-151.0,0.00035,7]
[340851215,1729938640729,-151.0,0.00035,7]
[340851217,1729938640740,-151.0,0.00035,7]
[340851219,1729938640750,-191.586426,0.00035,7]
[340851221,1729938640759,-151.0,0.00035,7]
[340851223,1729938640773,-151.0,0.00035,7]
[340851225,1729938640783,-151.0,0.00035,7]
[340851227,1729938640792,-151.0,0.00035,7]
[340851229,1729938640803,-155.22404,0.00035,7]
[340851231,1729938640813,-151.0,0.00035,7]
[340851233,1729938640823,-151.0,0.00035,7]
[340851235,1729938640831,-155.93353,0.00035,7]
[340851237,1729938640841,-151.0,0.00035,7]
[340851239,1729938640850,-151.0,0.00035,7]
[340851241,1729938640861,-151.0,0.00035,7]
[340851243,1729938640871,-372.718637,0.00035,7]
[340851245,1729938640881,-151.0,0.00035,7]
[340851247,1729938640890,-372.718637,0.00035,7]
[340851249,1729938640899,-151.0,0.00035,7]
[340851250,1729938640908,-372.718637,0.00035,7]
[340851252,1729938640917,-151.0,0.00035,7]
[340851254,1729938640926,-372.718637,0.00035,7]
[340851256,1729938640936,-151.0,0.00035,7]
[340851258,1729938640946,-372.718637,0.00035,7]
[340851260,1729938640956,-372.718637,0.00035,7]
[340851262,1729938640966,-372.718637,0.00035,7]
[340851264,1729938640975,-372.718637,0.00035,7]
[340851266,1729938640986,-372.718637,0.00035,7]
[340851267,1729938640995,-230.370914,0.00035,7]
[340851268,1729938641004,-372.718637,0.00035,7]
[340851269,1729938641014,-372.718637,0.00035,7]
[340851270,1729938641023,-372.718637,0.00035,7]
[340851271,1729938641034,-372.718637,0.00035,7]
[340851272,1729938641043,-372.718637,0.00035,7]
[340851273,1729938641053,-372.718637,0.00035,7]
[340851274,1729938641062,-372.718637,0.00035,7]
[340851275,1729938641072,-372.718637,0.00035,7]
[340851276,1729938641081,-372.718637,0.00035,7]
[340851277,1729938641091,-372.718637,0.00035,7]
[340851278,1729938641100,-372.718643,0.00035,7]
[340851279,1729938641109,-151.0,0.00035,7]
[340851280,1729938641120,-151.0,0.00035,7]
[340851281,1729938641129,-151.0,0.00035,7]
[340851282,1729938641138,-151.0,0.00035,7]
[340851283,1729938641147,-151.0,0.00035,7]
[340851284,1729938641157,-151.0,0.00035,7]
[340851285,1729938641166,-151.0,0.00035,7]
[340851286,1729938641176,-151.0,0.00035,7]
[340851287,1729938641185,-151.0,0.00035,7]
[340851288,1729938641196,-151.0,0.00035,7]
[340851289,1729938641205,-151.0,0.00035,7]
[340851290,1729938641215,-151.0,0.00035,7]
[340851291,1729938641224,-151.0,0.00035,7]
[340851292,1729938641235,-151.0,0.00035,7]
[340851293,1729938641248,-151.0,0.00035,7]
[340851294,1729938641257,-151.0,0.00035,7]
[340851295,1729938641266,-151.0,0.00035,7]
[340851296,1729938641276,-151.0,0.00035,7]
[340851297,1729938641285,-151.0,0.00035,7]
[340851298,1729938641294,-151.0,0.00035,7]
[340851299,1729938641303,-151.0,0.00035,7]
[340851300,1729938641312,-151.0,0.00035,7]
[340851301,1729938641322,-151.0,0.00035,7]
[340851302,1729938641331,-192.581918,0.00035,7]
[340851303,1729938641341,-151.0,0.00035,7]
[340851304,1729938641350,-222.668122,0.00035,7]
[340851305,1729938641359,-222.668122,0.00035,7]
[340851306,1729938641369,-222.668122,0.00035,7]
[340851307,1729938641379,-222.668122,0.00035,7]
[340851308,1729938641389,-222.668122,0.00035,7]
[340851309,1729938641400,-222.668122,0.00035,7]
[340851310,1729938641410,-222.668122,0.00035,7]
[340851311,1729938641420,-222.668122,0.00035,7]
[340851312,1729938641431,-222.668122,0.00035,7]
[340851313,1729938641441,-222.668122,0.00035,7]
[340851314,1729938641451,-222.668122,0.00035,7]
[340851315,1729938641461,-222.668122,0.00035,7]
[340851316,1729938641471,-222.668122,0.00035,7]
[340851317,1729938641481,-222.668122,0.00035,7]
[340851318,1729938641494,-222.668122,0.00035,7]
[340851319,1729938641503,-222.668122,0.00035,7]
[340851320,1729938641513,-222.668122,0.00035,7]
[340851321,1729938641522,-222.668122,0.00035,7]
[340851322,1729938641530,-222.668122,0.00035,7]
[340851323,1729938641539,-222.668132,0.00035,7]
[340851324,1729938641550,-5057.995019,0.00035,7]